fUST/lending_fUST_20241213
["ID","MTS","AMOUNT","RATE_DAILY","PERIOD"]
[345139523,1734065438597,-500.0,0.00026294,2]
[345139525,1734065438607,-500.0,0.00026294,2]
[345139527,1734065438617,-500.0,0.00026294,2]
[345139529,1734065438626,-500.0,0.00026294,2]
[345139530,1734065438636,-500.0,0.00026294,2]
[345139532,1734065438646,-500.0,0.00026294,2]
[345139534,1734065438656,-500.0,0.00026294,2]
[345139535,1734065438665,-500.0,0.00026294,2]
[345139536,1734065438675,-500.0,0.00026294,2]
[345139537,1734065438689,-500.0,0.00026294,2]
[345139538,1734065438699,-500.0,0.00026294,2]
[345139539,1734065438708,-500.0,0.00026294,2]
[345139540,1734065438718,-500.0,0.00026294,2]
[345139541,1734065438729,-500.0,0.00026294,2]
[345139542,1734065438739,-447.30013987,0.00026294,2]
[345139543,1734065438749,-500.0,0.00026294,2]
[345139544,1734065438758,-500.0,0.00026294,2]
[345139545,1734065438769,-500.0,0.00026294,2]
[345139546,1734065438780,-500.0,0.00026294,2]
[345139547,1734065438795,-500.0,0.00026294,2]
[345139548,1734065438813,-500.0,0.00026294,2]
[345139549,1734065438823,-550.0,0.00026294,2]
[345139550,1734065438833,-500.0,0.00026294,2]
[345139551,1734065438848,-500.0,0.00026294,2]
[345139552,1734065438859,-500.0,0.00026294,2]
[345139553,1734065438872,-151.0,0.00026294,7]
[345139554,1734065438882,-151.0,0.00026294,7]
[345139555,1734065438893,-151.0,0.00026294,7]
[345139556,1734065438903,-151.0,0.00026294,7]
[345139557,1734065438913,-151.0,0.00026294,7]
[345139558,1734065438923,-151.0,0.00026294,7]
[345139559,1734065438940,-151.0,0.00026294,7]
[345139560,1734065438950,-151.0,0.00026294,7]
[345139561,1734065438960,-151.0,0.00026294,7]
[345139562,1734065438969,-151.0,0.00026294,7]
[345139563,1734065438979,-151.0,0.00026294,7]
[345139564,1734065438988,-151.0,0.00026294,7]
[345139565,1734065438998,-180.173102,0.00026294,7]
[345139566,1734065439007,-210.70161,0.00026294,7]
[345139567,1734065439016,-210.70161,0.00026294,7]
[345139568,1734065439026,-210.70161,0.00026294,7]
[345139569,1734065439035,-210.70161,0.00026294,7]
[345139570,1734065439045,-210.70161,0.00026294,7]
[345139571,1734065439054,-210.70161,0.00026294,7]
[345139572,1734065439064,-210.70161,0.00026294,7]
[345139573,1734065439073,-210.70161,0.00026294,7]
[345139574,1734065439083,-210.70161,0.00026294,7]
[345139575,1734065439092,-210.70161,0.00026294,7]
[345139576,1734065439102,-210.70161,0.00026294,7]
[345139577,1734065439111,-210.70161,0.00026294,7]
[345139578,1734065439121,-210.70161,0.00026294,7]
[345139579,1734065439131,-210.70161,0.00026294,7]
[345139580,1734065439140,-210.70161,0.00026294,7]
[345139581,1734065439150,-210.701606,0.00026294,7]
[345139582,1734065439160,-151.0,0.00026294,7]
[345139583,1734065439169,-151.0,0.00026294,7]
[345139584,1734065439184,-151.0,0.00026294,7]
[345139585,1734065439194,-151.0,0.00026294,7]
[345139586,1734065439203,-151.0,0.00026294,7]
[345139587,1734065439213,-151.0,0.00026294,7]
[345139588,1734065439223,-151.0,0.00026294,7]
[345139589,1734065439232,-151.0,0.00026294,7]
[345139590,1734065439244,-151.0,0.00026295,7]
[345139591,1734065439254,-151.0,0.00026295,7]
[345139592,1734065439263,-151.0,0.00026295,7]
[345139593,1734065439273,-296.989304,0.00026295,7]
[345139594,1734065439282,-151.0,0.00026295,7]
[345139595,1734065439291,-152.589039,0.00026295,7]
[345139596,1734065439301,-151.48789,0.00026295,7]
[345139597,1734065439311,-151.0,0.00026295,7]
[345139598,1734065439320,-115.45118434,0.00026295,7]
[345139642,1734065440345,-151.0,0.00026294,7]
[345139644,1734065440355,-43.25712466,0.00026295,7]
[345139646,1734065440364,-293.204835,0.00026295,7]
[345139648,1734065440373,-293.204835,0.00026295,7]
[345139650,1734065440382,-293.20483,0.00026295,7]
[345139652,1734065440391,-151.0,0.00026295,7]
[345139654,1734065440400,-151.0,0.00026295,7]
[345139656,1734065440410,-151.0,0.00026295,7]
[345139658,1734065440419,-152.45284,0.00026295,7]
[345139660,1734065440430,-151.0,0.00026295,7]
[345139662,1734065440440,-151.0,0.00026295,7]
[345139664,1734065440449,-151.0,0.00026295,7]
[345139666,1734065440458,-151.0,0.00026295,7]
[345139668,1734065440467,-297.486925,0.00026295,7]
[345139670,1734065440476,-151.0,0.00026295,7]
[345139672,1734065440486,-151.0,0.00026295,7]
[345139674,1734065440495,-151.0,0.00026295,7]
[345139676,1734065440504,-151.0,0.00026295,7]
[345139678,1734065440514,-151.0,0.00026295,7]
[345139680,1734065440523,-151.0,0.00026295,7]
[345139682,1734065440531,-151.0,0.00026295,7]
[345139684,1734065440541,-151.0,0.00026295,7]
[345139686,1734065440551,-151.0,0.00026295,7]
[345139688,1734065440560,-151.0,0.00026295,7]
[345139690,1734065440570,-159.019345,0.00026295,7]
[345139692,1734065440579,-151.0,0.00026295,7]
[345139694,1734065440589,-151.0,0.00026295,7]
[345139696,1734065440598,-151.0,0.00026295,7]
[345139698,1734065440607,-170.23377,0.00026295,7]
[345139700,1734065440616,-155.155784,0.00026295,7]
[345139702,1734065440626,-153.466668,0.00026295,7]
[345139704,1734065440635,-151.0,0.00026295,7]
[345139706,1734065440644,-151.0,0.00026295,7]
[345139708,1734065440653,-151.0,0.00026295,7]
[345139710,1734065440663,-151.0,0.00026295,7]
[345139712,1734065440672,-151.0,0.00026295,7]
[345139736,1734065440895,-186.25855,0.00026295,7]
[345139738,1734065440905,-151.0,0.00026295,7]
[345139740,1734065440914,-151.0,0.00026295,7]
[345139741,1734065440923,-151.0,0.00026295,7]
[345139742,1734065440934,-151.0,0.00026295,7]
[345139743,1734065440944,-151.0,0.00026295,7]
[345139744,1734065440953,-151.0,0.00026295,7]
[345139745,1734065440962,-151.0,0.00026295,7]
[345139747,1734065440972,-151.0,0.00026295,7]
[345139749,1734065440981,-151.0,0.00026295,7]
[345139751,1734065440990,-151.0,0.00026295,7]
[345139753,1734065440999,-151.0,0.00026295,7]
[345139755,1734065441008,-293.570406,0.00026295,7]
[345139757,1734065441017,-154.731954,0.00026295,7]
[345139759,1734065441027,-151.0,0.00026295,7]
[345139761,1734065441036,-154.76493,0.00026295,7]
[345139763,1734065441045,-4507.669299,0.00026295,7]
[345139765,1734065441054,-4507.669299,0.00026295,7]
[345139767,1734065441063,-4507.669299,0.00026295,7]
[345139769,1734065441073,-4507.669299,0.00026295,7]
[345139771,1734065441082,-4507.669299,0.00026295,7]
[345139773,1734065441091,-4507.669299,0.00026295,7]
[345139775,1734065441100,-4507.669299,0.00026295,7]
[345139777,1734065441111,-312.954546,0.00026295,7]
[345139779,1734065441120,-4507.669299,0.00026295,7]
[345139781,1734065441130,-312.954546,0.00026295,7]
[345139782,1734065441139,-4507.669299,0.00026295,7]
[345139784,1734065441148,-312.954546,0.00026295,7]
[345139786,1734065441157,-4507.669299,0.00026295,7]
[345139788,1734065441166,-1090.34596418,0.00026295,7]
[345140256,1734066239181,166.047933,0.00013973,2]
[345140310,1734066632467,-287.0,0.00022,2]
[345140311,1734066632477,-185.1946917,0.00022117,2]
[345140312,1734066632487,-287.0,0.00022192,2]
[345140313,1734066632496,-287.0,0.00023014,2]
[345140314,1734066632505,-168.380424,0.00023381,2]
[345140315,1734066632514,-293.0,0.00024164,2]
[345140316,1734066632523,-300.0,0.00024192,2]
[345140317,1734066632532,-300.0,0.00024192,2]
[345140318,1734066632541,-18511.9396424,0.00024193,2]
[345140319,1734066632550,-1938.8904424,0.00024323,2]
[345140320,1734066632559,-200.0,0.00024377,2]
[345140321,1734066632568,-250.0,0.00024548,2]
[345140322,1734066632577,-2779.3302148,0.00024711,2]
[345140323,1734066632587,-4788.2419737,0.00024849,2]
[345140324,1734066632596,-460.48437674,0.0002488,2]
[345140325,1734066632605,-453.567,0.0002498,2]
[345140326,1734066632614,-188.4425709,0.00025018,2]
[345140327,1734066632623,-460.4843767,0.00025383,2]
[345140328,1734066632638,-166.0167988,0.00025501,120]
[345140329,1734066632647,-287.0,0.00025775,2]
[345140330,1734066632656,-460.4843767,0.00025886,2]
[345140331,1734066632665,-150.0,0.000262,2]
[345140332,1734066632674,-259.51552969,0.00026201,2]
[345140333,1734066632683,-420.0,0.00026229,2]
[345140334,1734066632693,-152.528,0.000263,13]
[345140335,1734066632703,-152.90459,0.00026301,7]
[345140336,1734066632712,-167.886902,0.00026301,7]
[345140337,1734066632721,-151.736933,0.00026301,7]
[345140338,1734066632730,-151.0,0.00026301,7]
[345140339,1734066632739,-151.0,0.00026301,7]
[345140340,1734066632748,-151.0,0.00026301,7]
[345140341,1734066632757,-151.0,0.00026301,7]
[345140342,1734066632766,-151.0,0.00026301,7]
[345140343,1734066632775,-151.0,0.00026301,7]
[345140344,1734066632784,-225.358682,0.00026301,7]
[345140345,1734066632793,-225.358682,0.00026301,7]
[345140346,1734066632802,-225.358682,0.00026301,7]
[345140347,1734066632811,-225.358682,0.00026301,7]
[345140348,1734066632820,-206.111219,0.00026301,7]
[345140349,1734066632829,-2199.317351,0.00026301,7]
[345140350,1734066632838,-2199.317351,0.00026301,7]
[345140351,1734066632847,-2199.317351,0.00026301,7]
[345140352,1734066632856,-151.0,0.00026301,7]
[345140353,1734066632866,-2068.37819665,0.00026301,7]
[345140354,1734066632879,-130.93915435,0.00026301,7]
[345140355,1734066632889,-151.0,0.00026301,7]
[345140356,1734066632898,-172.900867,0.00026301,7]
[345140357,1734066632907,-172.900867,0.00026301,7]
[345140358,1734066632916,-172.900867,0.00026301,7]
[345140359,1734066632926,-172.900867,0.00026301,7]
[345140360,1734066632935,-151.0,0.00026301,7]
[345140361,1734066632944,-151.0,0.00026301,7]
[345140362,1734066632953,-266.011364,0.00026301,7]
[345140363,1734066632962,-266.011364,0.00026301,7]
[345140364,1734066632971,-266.011364,0.00026301,7]
[345140365,1734066632980,-266.011364,0.00026301,7]
[345140366,1734066632989,-5000.0,0.00026301,7]
[345140367,1734066632998,-5000.0,0.00026301,7]
[345140368,1734066633007,-5000.0,0.00026301,7]
[345140369,1734066633017,-1310.57820905,0.00026301,7]
[345140370,1734066633029,-3689.42179095,0.00026301,7]
[345140371,1734066633039,-5000.0,0.00026301,7]
[345140372,1734066633049,-511.14544377,0.00026301,7]
[345140373,1734066633061,-4488.85455623,0.00026301,7]
[345140374,1734066633070,-4652.99429863,0.00026301,7]
[345140375,1734066633085,-347.00570137,0.00026301,7]
[345140376,1734066633095,-3180.9428733,0.00026301,7]
[345140377,1734066633104,-249.22411,0.00026301,7]
[345140378,1734066633113,-249.22411,0.00026301,7]
[345140379,1734066633123,-249.22411,0.00026301,7]
[345140380,1734066633133,-249.22411,0.00026301,7]
[345140381,1734066633143,-249.22411,0.00026301,7]
[345140382,1734066633152,-249.22411,0.00026301,7]
[345140383,1734066633162,-153.79775,0.0002632,7]
[345140384,1734066633171,-660.0,0.00026384,2]
[345140385,1734066633182,-460.4843767,0.00026389,2]
[345140386,1734066633192,-63.76330073,0.0002639,60]
[345140518,1734066640480,-87.23669927,0.0002639,60]
[345140520,1734066640489,-4906.98330073,0.00026394,2]
[345143206,1734067180426,166.047933,0.00013973,2]
[345143217,1734067708617,953.89397853,0.0002,2]
[345143218,1734067718259,20549.84141071,0.0001999,2]
[345143219,1734067718284,19067.76156529,0.0001999,2]
[345143577,1734068183150,166.047933,0.00013973,2]
[345143585,1734068916625,199.0,0.0002,2]
[345143642,1734069031890,-174.2308189,0.00024082,2]
[345143644,1734069031900,-300.0,0.00024999,2]
[345143646,1734069031909,-300.0,0.00024999,2]
[345143648,1734069031918,-2525.16346687,0.00025,2]
[345143650,1734069031927,-176.20110215,0.00025,2]
[345143652,1734069031937,-54247.29389927,0.00025,7]
[345143655,1734069031946,-503.55,0.00025,3]
[345143657,1734069031966,-500.0,0.00025,3]
[345143659,1734069031977,-500.0,0.00025,3]
[345143661,1734069031987,-500.0,0.00025,3]
[345143664,1734069031996,-152.528,0.00025054,9]
[345143667,1734069032008,-434.889,0.0002507,2]
[345143671,1734069032019,-150.0,0.00025426,2]
[345143674,1734069032028,-385.673,0.00025426,2]
[345143678,1734069032037,-2354.299,0.00025426,2]
[345143681,1734069032047,-207.61242376,0.000259,2]
[345143683,1734069032057,-160.0,0.00025999,2]
[345143685,1734069032066,-160.63184374,0.00025999,2]
[345143687,1734069032076,-151.0,0.00026,7]
[345143689,1734069032086,-17877.96,0.00026,7]
[345143691,1734069032097,-2647.71260773,0.00026,7]
[345143693,1734069032106,-207.61242373,0.00026249,2]
[345143695,1734069032116,-152.06682243,0.000263,7]
[345143697,1734069032126,-167.80047008,0.00026393,2]
[345143699,1734069032136,-71583.7751197,0.00026394,2]
[345143702,1734069032148,-1794.18095559,0.00026394,2]
[345148743,1734069096616,500.0,0.00025395,120]
[345148817,1734069097310,500.0,0.00025395,120]
[345148930,1734069098473,500.0,0.00025395,120]
[345148995,1734069099235,500.0,0.00025395,120]
[345149065,1734069100072,500.0,0.00025395,120]
[345149134,1734069100836,500.0,0.00025395,120]
[345149203,1734069101604,500.0,0.00025395,120]
[345149225,1734069102378,500.0,0.00025395,120]
[345149299,1734069103137,500.0,0.00025395,120]
[345149423,1734069104342,500.0,0.00025395,120]
[345149499,1734069105071,500.0,0.00025395,120]
[345151482,1734069229470,166.047933,0.00013973,2]
[345151484,1734069234908,500.0,0.00025395,120]
[345151485,1734069235669,500.0,0.00025395,120]
[345151486,1734069236418,500.0,0.00025395,120]
[345151487,1734069237205,500.0,0.00025395,120]
[345151488,1734069237963,500.0,0.00025395,120]
[345151489,1734069239472,500.0,0.00025395,120]
[345151490,1734069240250,500.0,0.00025395,120]
[345151491,1734069241010,500.0,0.00025395,120]
[345151492,1734069241770,500.0,0.00025395,120]
[345151493,1734069307120,500.0,0.00025395,120]
[345151494,1734069307892,500.0,0.00025395,120]
[345151495,1734069308749,500.0,0.00025395,120]
[345151496,1734069309381,500.0,0.00025395,120]
[345151497,1734069310133,500.0,0.00025395,120]
[345151498,1734069310886,500.0,0.00025395,120]
[345151499,1734069311633,500.0,0.00025395,120]
[345151500,1734069312397,500.0,0.00025395,120]
[345151501,1734069313152,500.0,0.00025395,120]
[345151502,1734069314008,500.0,0.00025395,120]
[345151503,1734069314767,500.0,0.00025395,120]
[345151504,1734069315548,500.0,0.00025395,120]
[345151505,1734069316528,500.0,0.00025395,120]
[345151506,1734069317080,500.0,0.00025395,120]
[345151507,1734069317844,500.0,0.00025395,120]
[345151508,1734069318834,500.0,0.00025395,120]
[345151509,1734069319360,500.0,0.00025395,120]
[345151510,1734069320099,500.0,0.00025395,120]
[345151511,1734069320880,500.0,0.00025395,120]
[345151512,1734069321709,500.0,0.00025395,120]
[345151513,1734069322433,500.0,0.00025395,120]
[345151514,1734069323219,500.0,0.00025395,120]
[345151515,1734069324002,500.0,0.00025395,120]
[345151516,1734069325163,500.0,0.00025395,120]
[345151517,1734069325924,500.0,0.00025395,120]
[345151518,1734069326828,500.0,0.00025395,120]
[345151519,1734069327473,500.0,0.00025395,120]
[345151520,1734069328251,500.0,0.00025395,120]
[345151521,1734069329235,500.0,0.00025395,120]
[345151522,1734069330357,303.48,0.00025395,120]
[345151545,1734070235196,-416.33,0.0002507,2]
[345151546,1734070235206,-145.77,0.00025395,7]
[345151579,1734070238136,-267.08017194,0.00025395,7]
[345151613,1734070691062,400.0,0.00025,120]
[345151615,1734071015566,165.342997,0.00013973,2]
[345151668,1734071432701,203.0,0.000255,120]
[345151752,1734071900779,165.342997,0.00013973,2]
[345151761,1734072586763,2368.46,0.00020222,2]
[345151840,1734072635519,-345.74596567,0.000238,2]
[345151842,1734072635529,-1262.58173344,0.00024041,2]
[345151843,1734072635538,-176.20110214,0.00024041,2]
[345151844,1734072635547,-448.92,0.00024041,2]
[345151845,1734072635556,-300.78648283,0.0002462,2]
[345151846,1734072635566,-155.70931782,0.0002497,2]
[345151847,1734072635575,-162.70633733,0.00024999,2]
[345151848,1734072635584,-300.0,0.00024999,2]
[345151849,1734072635593,-300.0,0.00024999,2]
[345151850,1734072635603,-613.0,0.00025,2]
[345151851,1734072635612,-112142.56152374,0.00025,2]
[345151852,1734072635621,-399.145,0.0002507,2]
[345151853,1734072635630,-150.0,0.00025096,2]
[345151854,1734072635639,-492.9808339,0.00025346,2]
[345151855,1734072635648,-165.68982806,0.00025395,7]
[345151856,1734072635658,-4946.33478284,0.000255,2]
[345151857,1734072635667,-1507.0,0.00025588,15]
[345151858,1734072635676,-155.70931779,0.00025745,2]
[345151859,1734072635687,-300.0,0.00026,120]
[345151860,1734072635700,-166.09,0.00026017,3]
[345151861,1734072635709,-153.0,0.00026221,2]
[345151862,1734072635718,-153.0,0.00026221,2]
[345151863,1734072635728,-153.0,0.00026222,2]
[345151864,1734072635737,-153.0,0.00026222,2]
[345151865,1734072635746,-317.0,0.000263,12]
[345151866,1734072635755,-70079.8377762,0.00026394,2]
[345151877,1734072638400,-150.0,0.00025721,2]
[345151878,1734072638410,-4488.64024578,0.00026394,2]
[345152254,1734072643852,-520.0,0.00026394,2]
[345160825,1734072828732,165.342997,0.00013973,2]
[345160854,1734073832692,-155.70931779,0.00024945,2]
[345160855,1734073832702,-257.87160409,0.00024945,2]
[345160856,1734073832711,-300.0,0.00024999,2]
[345160857,1734073832720,-300.0,0.00024999,2]
[345160858,1734073832730,-76222.47303273,0.00025,7]
[345160859,1734073832739,-152.528,0.00025045,9]
[345160860,1734073832748,-399.049,0.0002507,2]
[345160861,1734073832757,-257.87160403,0.00025439,2]
[345160862,1734073832767,-162.4,0.000259,2]
[345160863,1734073832776,-257.87160403,0.00025932,2]
[345160864,1734073832785,-153.0,0.00025937,2]
[345160865,1734073832795,-153.0,0.00025937,2]
[345160866,1734073832804,-153.0,0.00025937,2]
[345160867,1734073832814,-1000.0,0.00026176,2]
[345160868,1734073832823,-166.0,0.00026203,3]
[345160869,1734073832832,-166.0,0.00026203,3]
[345160870,1734073832842,-168.0,0.00026203,3]
[345160871,1734073832851,-709.99298266,0.00026212,2]
[345160872,1734073832861,-10288.88857371,0.00026222,2]
[345160873,1734073832871,-301.0,0.000263,12]
[345160874,1734073832880,-150.0,0.00026338,2]
[345160875,1734073832890,-64005.34427864,0.00026394,2]
[345160928,1734073839034,-72946.37592736,0.00026394,2]
[345161003,1734073845102,-400327.161633,0.00026394,2]
[345161005,1734073845114,-500.0,0.00026394,10]
[345161007,1734073845123,-501.21348627,0.00026394,10]
[345161009,1734073845134,-713.21,0.000264,2]
[345161011,1734073845143,-257.87160403,0.00026426,2]
[345161013,1734073845152,-151.0,0.00026515,5]
[345161015,1734073845163,-160.0,0.00026793,3]
[345161017,1734073845172,-162.6358409,0.00026793,5]
[345161019,1734073845183,-185.0,0.00026827,3]
[345161021,1734073845192,-185.0,0.00026827,3]
[345161023,1734073845201,-185.0,0.00026827,3]
[345161025,1734073845211,-185.0,0.00026827,3]
[345161027,1734073845220,-185.0,0.00026827,3]
[345161029,1734073845229,-185.0,0.00026827,3]
[345161032,1734073845239,-185.0,0.00026827,3]
[345161034,1734073845248,-185.0,0.00026827,3]
[345161036,1734073845257,-185.0,0.00026827,3]
[345161038,1734073845267,-185.0,0.00026827,3]
[345161040,1734073845276,-185.0,0.00026827,3]
[345161042,1734073845285,-185.0,0.00026827,3]
[345161044,1734073845295,-185.0,0.00026827,3]
[345161046,1734073845304,-185.0,0.00026827,3]
[345161048,1734073845314,-199.0,0.00026827,3]
[345161050,1734073845323,-151.0,0.00026873,5]
[345161052,1734073845332,-761.91751528,0.0002688,2]
[345161054,1734073845342,-300.0,0.000269,2]
[345161056,1734073845351,-257.87160403,0.00026919,2]
[345161058,1734073845364,-20000.0,0.00027,7]
[345161060,1734073845373,-500.0,0.00027,120]
[345161062,1734073845383,-420.0,0.00027082,2]
[345161064,1734073845392,-152.0,0.000271,60]
[345161066,1734073845402,-208.0,0.000272,21]
[345161068,1734073845412,-151.0,0.0002723,5]
[345161070,1734073845421,-2955.1000007,0.0002725,120]
[345161072,1734073845431,-155.70931779,0.00027294,2]
[345161074,1734073845441,-439.01569675,0.00027297,2]
[345161076,1734073845453,-1000.0,0.000273,2]
[345161078,1734073845463,-150.679402,0.000273,2]
[345161080,1734073845472,-500.0,0.00027372,2]
[345161082,1734073845483,-500.0,0.00027372,2]
[345161084,1734073845493,-500.0,0.00027372,2]
[345161086,1734073845502,-482.30210518,0.00027372,2]
[345161089,1734073845512,-500.0,0.00027372,2]
[345161090,1734073845521,-500.0,0.00027372,2]
[345161093,1734073845530,-500.0,0.00027372,2]
[345161094,1734073845540,-500.0,0.00027372,2]
[345161096,1734073845549,-392.59818747,0.00027372,2]
[345161098,1734073845558,-451.65419141,0.00027372,2]
[345161100,1734073845567,-500.0,0.00027372,2]
[345161103,1734073845576,-333.69027489,0.00027372,2]
[345161105,1734073845586,-500.94173361,0.00027373,2]
[345161107,1734073845595,-500.71251462,0.00027373,2]
[345161109,1734073845604,-528.2905009,0.00027373,2]
[345161111,1734073845617,-500.0,0.00027373,2]
[345161113,1734073845627,-500.0,0.00027373,2]
[345161114,1734073845636,-500.0,0.00027373,2]
[345161117,1734073845646,-500.0,0.00027373,2]
[345161118,1734073845655,-507.73149175,0.00027373,2]
[345161121,1734073845665,-397.21118153,0.00027373,2]
[345161123,1734073845674,-262.64861458,0.00027373,2]
[345161125,1734073845684,-203.50847201,0.00027373,2]
[345161127,1734073845694,-160.58537693,0.00027373,2]
[345161129,1734073845703,-160.08532705,0.00027373,2]
[345161131,1734073845712,-160.08532663,0.00027373,2]
[345161133,1734073845722,-500.0,0.00027373,2]
[345161135,1734073845731,-500.0,0.00027373,2]
[345161137,1734073845740,-500.0,0.00027373,2]
[345161139,1734073845750,-150.06,0.00027373,2]
[345161141,1734073845759,-150.06,0.00027373,2]
[345161143,1734073845768,-150.06,0.00027373,2]
[345161145,1734073845778,-153.540891,0.00027373,7]
[345161147,1734073845788,-151.0,0.00027373,7]
[345161149,1734073845797,-151.43573106,0.00027373,2]
[345161151,1734073845807,-174.456877,0.00027373,7]
[345161153,1734073845816,-174.456877,0.00027373,7]
[345161155,1734073845826,-180.286945,0.00027373,7]
[345161157,1734073845835,-180.286945,0.00027373,7]
[345161159,1734073845844,-212.809091,0.00027373,7]
[345161161,1734073845855,-151.0,0.00027373,7]
[345161163,1734073845868,-212.809091,0.00027373,7]
[345161165,1734073845878,-289.356274,0.00027373,7]
[345161168,1734073845888,-151.0,0.00027373,7]
[345161170,1734073845898,-151.0,0.00027373,7]
[345161172,1734073845907,-151.0,0.00027373,7]
[345161174,1734073845916,-151.0,0.00027373,7]
[345161177,1734073845926,-151.0,0.00027373,7]
[345161180,1734073845935,-150.06,0.00027373,2]
[345161182,1734073845944,-150.06,0.00027373,2]
[345161185,1734073845954,-150.06,0.00027373,2]
[345161187,1734073845963,-150.87479349,0.00027373,2]
[345161189,1734073845972,-500.0,0.00027373,2]
[345161191,1734073845981,-150.06,0.00027373,2]
[345161194,1734073845991,-150.06,0.00027373,2]
[345161199,1734073846000,-151.07220663,0.00027373,2]
[345161201,1734073846009,-150.06,0.00027373,2]
[345161203,1734073846018,-1759.453881,0.00027373,7]
[345161205,1734073846027,-1012.1212765,0.00027379,2]
[345161207,1734073846036,-180.286945,0.00027391,7]
[345161209,1734073846045,-180.286945,0.00027391,7]
[345161211,1734073846054,-212.809091,0.00027391,7]
[345161213,1734073846063,-212.809091,0.00027391,7]
[345161215,1734073846073,-151.0,0.00027391,7]
[345161217,1734073846082,-151.0,0.00027391,7]
[345161219,1734073846091,-151.0,0.00027391,7]
[345161221,1734073846100,-261.883514,0.00027392,7]
[345161223,1734073846110,-174.456877,0.00027392,7]
[345161225,1734073846129,-174.456877,0.00027392,7]
[345161227,1734073846139,-174.456877,0.00027393,7]
[345161229,1734073846148,-174.456877,0.00027393,7]
[345161231,1734073846157,-180.286945,0.00027393,7]
[345161233,1734073846167,-180.286945,0.00027393,7]
[345161235,1734073846176,-212.809091,0.00027393,7]
[345161237,1734073846185,-212.809091,0.00027393,7]
[345161238,1734073846195,-151.0,0.00027393,7]
[345161239,1734073846204,-151.0,0.00027393,7]
[345161240,1734073846214,-151.0,0.00027393,7]
[345161241,1734073846223,-151.0,0.00027393,7]
[345161242,1734073846232,-362.83600046,0.00027393,2]
[345161243,1734073846242,-233.34828021,0.00027393,2]
[345161244,1734073846251,-500.0,0.00027393,2]
[345161245,1734073846260,-577.65897462,0.00027393,2]
[345161246,1734073846269,-631.29086672,0.00027394,2]
[345161247,1734073846279,-300043.994034,0.00027394,5]
[345161248,1734073846288,-174.456877,0.00027394,7]
[345161249,1734073846298,-174.456877,0.00027394,7]
[345161250,1734073846307,-174.456877,0.00027394,7]
[345161251,1734073846316,-174.456877,0.00027394,7]
[345161252,1734073846326,-174.456877,0.00027394,7]
[345161253,1734073846336,-174.456877,0.00027394,7]
[345161255,1734073846345,-180.286945,0.00027394,7]
[345161256,1734073846355,-180.286945,0.00027394,7]
[345161258,1734073846365,-180.286945,0.00027394,7]
[345161260,1734073846374,-180.286945,0.00027394,7]
[345161262,1734073846383,-180.286945,0.00027394,7]
[345161264,1734073846392,-180.286945,0.00027394,7]
[345161266,1734073846402,-212.809091,0.00027394,7]
[345161268,1734073846411,-212.809091,0.00027394,7]
[345161270,1734073846420,-212.809091,0.00027394,7]
[345161272,1734073846429,-212.809091,0.00027394,7]